bitfinex-derivatives/quotes_ETHF0:USTF0_20210110
["timestamp","ask_amount","ask_price","bid_price","bid_amount"]
[1610304883321,1.0,1279.0,1278.8,10.0]
[1610304883517,1.0,1279.0,1278.9,10.0]
[1610304883817,1.0,1279.0,1278.7,2.0767]
[1610304884317,1.0,1279.0,1278.8,10.0]
[1610304884718,1.0,1279.0,1278.9,10.0]
[1610304884918,5.00959,1279.0,1278.9,10.0]
[1610304885119,5.00959,1279.0,1278.8,10.0]
[1610304885520,5.00959,1279.0,1278.4,1.9921]
[1610304885521,20.79903504,1279.0,1278.9,10.0]
[1610304885721,22.31103504,1279.0,1278.9,10.0]
[1610304885923,22.31103504,1279.0,1278.5,94.9908]
[1610304886220,2.512,1279.0,1278.9,10.0]
[1610304886626,2.512,1279.0,1278.7,1.8169]
[1610304886824,1.0,1279.0,1278.8,10.0]
[1610304887026,15.88135914,1279.3,1278.9,34.00959]
[1610304887227,10.31135914,1279.3,1279.0,10.0]
[1610304887427,2.455,1279.9,1279.1,30.0]
[1610304887428,2.0695,1279.9,1279.1,30.0]
[1610304887827,2.0695,1279.9,1279.2,10.0]
[1610304888028,2.0695,1279.9,1279.3,30.0]
[1610304888232,2.0695,1279.9,1279.1,10.0]
[1610304888629,65.1998,1280.4,1279.3,10.0]
[1610304888828,66.7585,1280.4,1279.3,10.0]
[1610304889031,4.00959,1279.4,1279.1,10.0]
[1610304889229,4.00959,1279.4,1279.0,1.8986]
[1610304889428,85.4928787,1280.4,1279.2,10.0]
[1610304889628,20.31433191,1280.3,1279.1,10.0]
[1610304889829,22.68503191,1280.3,1279.1,10.0]
[1610304890029,2.3707,1280.3,1279.2,10.0]
[1610304890530,2.3707,1280.3,1279.1,10.0]
[1610304890730,22.66618903,1280.3,1279.1,10.0]
[1610304890931,4.00959,1279.4,1279.3,10.0]
[1610304891130,4.00959,1279.4,1279.1,4.00959]
[1610304891532,4.00959,1279.4,1279.3,10.0]
[1610304891730,4.00959,1279.4,1279.2,10.0]
[1610304892130,4.00959,1279.4,1279.1,10.0]
[1610304892330,6.22809,1279.4,1279.3,10.0]
[1610304892730,1.24030557,1279.3,1278.2,10.0]
[1610304893130,4.00959,1278.3,1277.8,1.7803]
[1610304893330,4.00959,1278.3,1277.3,4.00959]
[1610304893532,4.00959,1278.3,1277.9,10.0]
[1610304893929,4.00959,1278.3,1277.5,1.9962]
[1610304894130,4.00959,1278.3,1278.0,10.0]
[1610304894333,1.24205592,1278.2,1277.6,10.0]
[1610304894532,3.38395592,1278.2,1277.6,10.0]
[1610304894731,3.38395592,1278.2,1278.1,10.0]
[1610304896734,1.24205592,1278.2,1278.1,10.0]
[1610304896934,1.24205592,1278.2,1278.1,14.00959]
[1610304897133,4.00959,1278.4,1278.1,10.0]
[1610304897334,4.00959,1278.4,1278.2,10.0]
[1610304898337,1.24175651,1278.3,1278.2,10.0]
[1610304898544,2.77695651,1278.3,1278.2,10.0]
[1610304901341,2.77695651,1278.3,1277.7,10.0]
[1610304901640,2.77695651,1278.3,1277.1,2.2646]
[1610304901841,2.77695651,1278.3,1277.8,10.0]
[1610304902440,2.77695651,1278.3,1277.9,10.0]
[1610304902640,1.24261794,1278.2,1277.9,10.0]
[1610304902942,1.24261794,1278.2,1277.6,10.0]
[1610304903140,4.00959,1278.0,1277.6,10.0]
[1610304903340,4.00959,1278.0,1277.7,10.0]
[1610304903539,4.00959,1278.0,1277.6,10.0]
[1610304903943,4.00959,1278.0,1277.7,10.0]
[1610304904144,1.24301901,1277.9,1277.7,10.0]
[1610304904541,1.24301901,1277.9,1277.6,10.0]
[1610304904741,1.24301901,1277.9,1277.1,2.2646]
[1610304904742,1.24301901,1277.9,1277.2,10.0]
[1610304905141,1.24301901,1277.9,1277.7,10.0]
[1610304905442,1.24301901,1277.9,1277.3,10.0]
[1610304905642,1.24301901,1277.9,1277.4,10.0]
[1610304905842,1.24301901,1277.9,1277.1,2.2646]
[1610304905843,1.24301901,1277.9,1277.2,10.0]
[1610304906447,1.24301901,1277.9,1277.3,10.0]
[1610304906645,1.24301901,1277.9,1277.2,10.0]
[1610304906943,1.24301901,1277.9,1277.4,10.0]
[1610304907144,4.00959,1277.9,1277.8,4.00959]
[1610304907747,2.2122,1278.8,1277.8,14.00959]
[1610304907945,5.6922,1279.0,1277.8,14.00959]
[1610304908145,5.6922,1279.0,1277.9,10.0]
[1610304908546,5.6922,1279.0,1277.8,4.00959]
[1610304908547,5.6922,1279.0,1278.0,10.0]
[1610304908748,25.63732862,1279.3,1278.0,10.0]
[1610304908949,25.63732862,1279.3,1277.9,10.0]
[1610304909150,4.00959,1278.0,1277.7,2.1492]
[1610304909747,4.00959,1278.0,1277.8,10.0]
[1610304909947,1.6734,1278.6,1277.8,10.0]
[1610304910149,1.6734,1278.6,1277.9,10.0]
[1610304910351,1.6734,1278.6,1277.7,2.1492]
[1610304910551,1.288,1278.6,1278.0,10.0]
[1610304910950,1.288,1278.6,1277.9,1.5663]
[1610304911151,4.00959,1278.7,1278.5,4.00959]
[1610304911556,4.00959,1278.7,1278.6,10.0]
[1610304911752,4.00959,1278.7,1278.6,12.3852]
[1610304912554,2.61129,1278.7,1278.6,12.3852]
[1610304912755,2.22129,1278.7,1278.6,12.3852]
[1610304913055,4.00959,1278.9,1278.6,12.3852]
[1610304913254,19.97572161,1280.1,1278.6,42.3852]
[1610304913456,19.97214292,1280.2,1278.7,10.0]
[1610304913655,5.3692,1280.8,1278.7,10.0]
[1610304913656,19.96199237,1280.3,1278.8,30.0]
[1610304913856,19.96199237,1280.3,1278.8,99.6033]
[1610304914058,19.98027561,1280.6,1278.8,99.6033]
[1610304914455,19.98027561,1280.6,1278.9,10.0]
[1610304914660,1.23943321,1280.2,1279.0,30.0]
[1610304914864,1.8088,1280.3,1279.0,30.0]
[1610304915060,1.8088,1280.3,1280.2,4.00959]
[1610304915265,50.24109,1281.3,1280.2,4.00959]
[1610304915266,1.6423,1280.6,1280.2,4.00959]
[1610304915862,1.6423,1280.6,1280.2,34.00959]
[1610304916060,1.6423,1280.6,1280.3,10.0]
[1610304916362,46.2315,1281.3,1280.3,40.0]
[1610304916561,46.2315,1281.3,1280.4,10.0]
[1610304916760,45.0035,1281.3,1280.5,30.0]
[1610304916960,20.01955743,1281.9,1280.5,42.4731]
[1610304917161,20.03170346,1282.1,1281.8,4.00959]
[1610304917363,20.02648996,1282.2,1281.8,4.00959]
[1610304917562,20.02648996,1282.2,1281.9,10.0]
[1610304917763,18.48724797,1282.4,1281.9,10.0]
[1610304917964,18.48724797,1282.4,1282.0,10.0]
[1610304918165,16.93724797,1282.4,1282.0,10.0]
[1610304918365,5.4451,1283.1,1281.9,10.0]
[1610304918765,20.50263831,1283.4,1282.0,10.0]
[1610304919167,4.00959,1283.0,1282.7,4.00959]
[1610304919566,1.5881,1283.0,1282.7,4.00959]
[1610304920066,1.5881,1283.0,1282.8,10.0]
[1610304920467,0.3646,1283.3,1282.9,10.0]
[1610304920867,0.3646,1283.3,1282.8,10.0]
[1610304921068,1.5352,1283.6,1283.2,4.00959]
[1610304921670,1.5352,1283.6,1283.3,10.0]
[1610304921869,1.2352,1283.6,1283.3,10.0]
[1610304922070,1.2352,1283.6,1283.2,4.00959]
[1610304922571,1.2352,1283.6,1283.3,10.0]
[1610304922972,1.2352,1283.6,1283.4,10.0]
[1610304923171,1.2352,1283.6,1283.5,4.00959]
[1610304923573,1.2352,1283.6,1283.5,14.00959]
[1610304923773,81.61531302,1284.7,1283.5,14.00959]
[1610304924173,70.05881302,1284.7,1283.6,10.0]
[1610304924372,49.4761,1284.7,1283.6,10.0]
[1610304924571,49.4761,1284.7,1283.7,10.0]
[1610304925072,4.00959,1283.8,1283.4,4.00959]
[1610304925272,4.00959,1283.8,1283.4,14.00959]
[1610304925673,4.00959,1283.8,1283.5,10.0]
[1610304926074,4.00959,1283.8,1283.6,10.0]
[1610304926273,2.36,1284.3,1283.4,4.00959]
[1610304926274,2.36,1284.3,1283.7,10.0]
[1610304926874,2.36,1284.3,1283.5,10.0]
[1610304927274,2.36,1284.3,1284.1,4.00959]
[1610304927474,51.425,1284.7,1283.8,1.6007]
[1610304927876,51.425,1284.7,1284.0,10.0]
[1610304928276,20.16144641,1284.2,1283.9,10.0]
[1610304928477,20.16144641,1284.2,1283.5,1.9167]
[1610304928676,20.15636799,1284.1,1283.5,1.9167]
[1610304928876,20.15636799,1284.1,1284.0,10.0]
[1610304929077,1.9651,1284.4,1283.6,10.0]
[1610304929279,4.00959,1284.1,1283.6,10.0]
[1610304929476,5.97749,1284.1,1283.2,1.5906]
[1610304929676,5.97749,1284.1,1282.9,2.2532]
[1610304929677,20.1545268,1283.8,1282.9,2.2532]
[1610304929877,20.1545268,1283.8,1283.3,10.0]
[1610304930279,20.1545268,1283.8,1282.1,1.7226]
[1610304930480,20.10997542,1283.6,1283.4,10.0]
[1610304930679,2.3023,1283.8,1282.8,10.0]
[1610304931279,2.3023,1283.8,1283.5,10.0]
[1610304931478,2.3023,1283.8,1282.5,4.00959]
[1610304931678,2.3023,1283.8,1283.6,10.0]
[1610304931884,2.3023,1283.8,1282.8,10.0]
[1610304932083,2.3023,1283.8,1283.7,10.0]
[1610304932383,2.3023,1283.8,1282.8,10.0]
[1610304932583,20.09785467,1283.2,1282.8,10.0]
[1610304932783,22.28755467,1283.2,1282.8,10.0]
[1610304932985,22.28755467,1283.2,1281.4,4.0295]
[1610304932986,2.1897,1283.2,1281.4,4.0295]
[1610304933183,4.00959,1282.6,1282.2,4.00959]
[1610304933384,6.32019,1282.6,1282.2,4.00959]
[1610304933584,6.32019,1282.6,1282.3,10.0]
[1610304933984,6.32019,1282.6,1282.4,10.0]
[1610304934184,6.32019,1282.6,1281.5,10.0]
[1610304934584,6.32019,1282.6,1281.1,2.2731]
[1610304934585,6.32019,1282.6,1282.5,10.0]
[1610304934787,26.34555896,1282.6,1280.9,1.5677]
[1610304935187,4.00959,1282.0,1281.9,4.00959]
[1610304935387,6.13359,1282.0,1281.9,4.00959]
[1610304935788,6.13359,1282.0,1281.9,10.0]
[1610304936188,2.124,1282.0,1281.9,10.0]
[1610304936389,2.124,1282.0,1281.3,1.546]
[1610304936590,2.124,1282.0,1281.4,10.0]
[1610304937089,2.3787,1282.3,1281.5,10.0]
[1610304937290,4.00959,1282.2,1281.9,4.00959]
[1610304937690,2.3106,1282.6,1282.0,10.0]
[1610304938089,2.3106,1282.6,1282.1,10.0]
[1610304938291,2.3106,1282.6,1281.7,2.4952]
[1610304938490,20.11205458,1282.9,1282.0,10.0]
[1610304938689,20.11205458,1282.9,1282.2,10.0]
[1610304938889,20.11247058,1282.8,1282.2,10.0]
[1610304939090,21.69327058,1282.8,1282.1,10.0]
[1610304939290,4.00959,1282.4,1282.1,10.0]
[1610304939689,6.22999,1282.4,1281.9,4.00959]
[1610304939890,6.22999,1282.4,1278.2,0.24070405]
[1610304940091,6.22999,1282.4,1282.2,10.0]
[1610304940490,20.09917267,1282.3,1281.4,10.0]
[1610304940690,20.09917267,1282.3,1278.2,30.0]
[1610304940891,20.08943802,1282.0,1281.5,10.0]
[1610304941291,20.08943802,1282.0,1280.2,10.0]
[1610304941292,6.13519,1281.6,1280.9,4.00959]
[1610304941492,6.13519,1281.6,1278.2,30.0]
[1610304941692,6.13519,1281.6,1281.0,10.0]
[1610304941892,6.13519,1281.6,1281.0,51.9687]
[1610304942292,6.13519,1281.6,1281.1,10.0]
[1610304942692,5.44689,1281.6,1281.2,10.0]
[1610304943091,5.44689,1281.6,1281.3,10.0]
[1610304943291,5.05629,1281.6,1281.1,10.0]
[1610304943492,2.93069,1281.6,1281.1,10.0]
[1610304943792,1.8542,1282.0,1281.5,10.0]
[1610304943993,22.44937791,1282.4,1281.3,1.5549]
[1610304944393,22.44937791,1282.4,1281.6,10.0]
[1610304944595,2.2204,1282.4,1281.6,10.0]
[1610304944793,2.2204,1282.4,1281.4,10.0]
[1610304944993,66.21467849,1282.5,1281.4,10.0]
[1610304945196,4.00959,1282.0,1281.8,4.00959]
[1610304945596,5.83689,1282.0,1281.3,11.5605]
[1610304945797,5.83689,1282.0,1281.3,10.0]
[1610304945997,5.83689,1282.0,1281.2,2.2472]
[1610304945998,5.83689,1282.0,1281.6,10.0]
[1610304946399,5.83689,1282.0,1281.4,10.0]
[1610304946603,5.83689,1282.0,1281.3,10.0]
[1610304947001,5.83689,1282.0,1281.5,10.0]
[1610304947201,4.00959,1281.7,1281.4,4.00959]
[1610304947400,1.8273,1282.0,1281.4,4.00959]
[1610304947599,1.8273,1282.0,1281.6,10.0]
[1610304947999,1.8273,1282.0,1281.5,10.0]
[1610304948199,1.8273,1282.0,1281.4,4.00959]
[1610304948401,1.8273,1282.0,1281.7,10.0]
[1610304948600,1.8273,1282.0,1281.5,10.0]
[1610304948999,1.8273,1282.0,1281.8,10.0]
[1610304949200,1.8273,1282.0,1281.9,4.00959]
[1610304949701,1.8273,1282.0,1281.9,14.00959]
[1610304950700,66.26472595,1282.5,1281.9,14.00959]
[1610304950901,45.9642,1282.5,1282.0,10.0]
[1610304951301,4.00959,1282.5,1282.2,4.00959]
[1610304951902,4.00959,1282.5,1282.3,10.0]
[1610304952303,4.00959,1282.5,1282.4,10.0]
[1610304952501,4.00959,1282.5,1282.3,10.0]
[1610304952903,4.00959,1282.5,1282.4,10.0]
[1610304953103,4.00959,1282.5,1282.3,10.0]
[1610304953703,4.00959,1282.5,1282.4,10.0]
[1610304954105,4.00959,1282.5,1282.3,10.0]
[1610304954305,6.21519,1282.5,1281.8,46.1022]
[1610304954506,26.54743248,1282.5,1281.9,10.0]
[1610304954704,26.54743248,1282.5,1282.0,10.0]
[1610304954906,20.33536155,1282.4,1282.0,10.0]
[1610304955104,20.33536155,1282.4,1281.9,10.0]
[1610304955307,4.00959,1282.1,1281.9,10.0]
[1610304955506,5.91899,1282.1,1281.9,10.0]
[1610304955706,5.91899,1282.1,1282.0,10.0]
[1610304956105,5.91899,1282.1,1281.9,10.0]
[1610304956506,5.91899,1282.1,1282.0,10.0]
[1610304956908,5.91899,1282.1,1281.9,10.0]
[1610304957309,5.91899,1282.1,1282.0,10.0]
[1610304957511,5.91899,1282.1,1281.9,10.0]
[1610304957910,5.91899,1282.1,1281.8,46.1022]
[1610304958110,5.91899,1282.1,1282.0,10.0]
[1610304958310,5.91899,1282.1,1281.9,10.0]
[1610304958512,26.23337255,1282.1,1282.0,10.0]
[1610304959111,5.91899,1282.1,1281.9,10.0]
[1610304959710,5.91899,1282.1,1282.0,10.0]
[1610304959911,5.91899,1282.1,1281.8,46.1022]
[1610304960112,5.91899,1282.1,1281.9,10.0]
[1610304960412,20.29020371,1282.0,1281.9,10.0]
[1610304960612,20.29020371,1282.0,1281.8,46.1022]
[1610304960812,20.29020371,1282.0,1281.1,51.6159]
[1610304961012,20.29020371,1282.0,1281.9,10.0]
[1610304961512,5.91899,1282.1,1281.1,51.6159]
[1610304961712,5.91899,1282.1,1281.2,10.0]
[1610304962113,20.2567476,1282.0,1281.3,10.0]
[1610304962313,26.16910952,1282.1,1281.3,10.0]
[1610304962512,26.16910952,1282.1,1281.4,10.0]
[1610304962714,26.16910952,1282.1,1281.2,10.0]
[1610304962913,5.91899,1282.1,1281.2,10.0]
[1610304963113,5.91899,1282.1,1281.3,10.0]
[1610304963317,1.9094,1282.1,1281.6,4.00959]
[1610304963516,20.24851264,1282.3,1281.6,4.00959]
[1610304963716,20.24122726,1282.4,1281.6,4.00959]
[1610304963917,20.24552833,1282.6,1281.6,4.00959]
[1610304964116,20.24552833,1282.6,1281.7,10.0]
[1610304964517,20.24552833,1282.6,1281.8,10.0]
[1610304964719,55.9216,1282.7,1281.8,10.0]
[1610304964919,55.9216,1282.7,1281.6,4.00959]
[1610304964920,55.9216,1282.7,1281.7,10.0]
[1610304965119,55.9216,1282.7,1281.9,10.0]
[1610304965320,4.00959,1282.5,1282.2,4.00959]
[1610304965519,4.00959,1282.5,1281.8,10.0]
[1610304965720,6.40579,1282.5,1281.5,2.0834]
[1610304965921,6.40579,1282.5,1282.3,10.0]
[1610304966121,6.40579,1282.5,1281.6,10.0]
[1610304966622,6.40579,1282.5,1282.4,10.0]
[1610304966823,6.40579,1282.5,1281.7,10.0]
[1610304967122,6.40579,1282.5,1281.6,10.0]
[1610304967322,4.00959,1281.7,1281.6,10.0]
[1610304967522,4.00959,1281.7,1281.5,2.0834]
[1610304967923,4.00959,1281.7,1281.6,10.0]
[1610304970924,5.21201532,1281.7,1281.6,10.0]
[1610304971125,1.20242532,1281.7,1281.6,10.0]
[1610304971325,1.20242532,1281.7,1281.6,14.00959]
[1610304971826,22.60536852,1282.5,1281.6,14.00959]
[1610304972027,2.3962,1282.5,1281.6,14.00959]
[1610304972229,20.24552806,1282.7,1281.7,10.0]
[1610304972429,20.24552806,1282.7,1281.7,11.5633]
[1610304972629,21.81370555,1282.8,1281.8,10.0]
[1610304972829,1.5808,1282.8,1281.8,10.0]
[1610304973030,1.5808,1282.8,1281.8,1.8777]
[1610304973230,20.23726095,1282.9,1281.9,10.0]
[1610304973428,4.00959,1282.7,1282.5,4.00959]
[1610304973628,4.00959,1282.7,1282.6,10.0]
[1610304974029,4.00959,1282.7,1281.9,10.0]
[1610304974430,4.00959,1282.7,1282.6,10.0]
[1610304974830,4.00959,1282.7,1281.9,10.0]
[1610304975030,4.00959,1282.7,1282.6,10.0]
[1610304975231,5.21156447,1282.7,1282.6,10.0]
[1610304978335,1.20197447,1282.7,1282.6,10.0]
[1610304979339,1.20197447,1282.7,1282.6,14.00959]
[1610304980638,1.20197447,1282.7,1282.6,10.0]
[1610304981438,1.20197447,1282.7,1282.6,14.00959]
[1610304982240,1.20178549,1283.2,1282.6,14.00959]
[1610304982439,20.15769073,1283.4,1282.6,14.00959]
[1610304982641,20.15769073,1283.4,1282.7,10.0]
[1610304982941,22.15287949,1283.5,1282.7,10.0]
[1610304983142,22.15287949,1283.5,1282.8,10.0]
[1610304983342,22.15287949,1283.5,1283.2,4.00959]
[1610304983541,1.9652,1283.5,1283.2,4.00959]
[1610304983742,1.20135377,1283.4,1282.4,2.3135]
[1610304983947,1.20135377,1283.4,1283.3,10.0]
[1610304984148,1.20135377,1283.4,1282.8,10.0]
[1610304984348,1.20135377,1283.4,1282.4,2.3135]
[1610304984548,21.44700776,1283.4,1282.5,10.0]
[1610304984948,20.24886474,1283.3,1282.6,10.0]
[1610304985349,4.00959,1282.7,1282.5,10.0]
[1610304985549,2.2868,1283.0,1282.4,4.00959]
[1610304986049,2.2868,1283.0,1282.5,10.0]
[1610304986449,2.2868,1283.0,1282.5,11.5601]
[1610304986650,1.20165464,1282.9,1282.6,10.0]
[1610304987049,1.20165464,1282.9,1282.5,1.5601]
[1610304987050,1.20165464,1282.9,1282.7,10.0]
[1610304987450,1.20165464,1282.9,1282.8,4.00959]
[1610304987650,1.20165464,1282.9,1282.8,14.00959]
[1610304987851,1.20139761,1283.4,1282.8,14.00959]
[1610304988252,1.20139761,1283.4,1282.9,10.0]
[1610304988652,1.20139761,1283.4,1283.0,10.0]
[1610304989052,1.20139761,1283.4,1282.9,10.0]
[1610304989452,4.00959,1283.0,1282.7,10.0]
[1610304989751,4.00959,1283.0,1282.8,10.0]
[1610304990353,4.00959,1283.0,1282.6,6.8713]
[1610304990552,1.20140849,1282.9,1282.6,6.8713]
[1610304990954,1.20140849,1282.9,1282.7,10.0]
[1610304991355,1.20140849,1282.9,1282.8,14.00959]
[1610304991956,1.20127396,1283.4,1282.8,14.00959]
[1610304992157,1.20127396,1283.4,1282.9,10.0]
[1610304992657,1.20127396,1283.4,1283.0,10.0]
[1610304993058,1.20127396,1283.4,1282.9,10.0]
[1610304993459,5.99509,1283.8,1283.0,10.0]
[1610304993460,4.00959,1283.3,1283.0,10.0]
[1610304993763,4.00959,1283.3,1282.9,10.0]
[1610304994162,4.00959,1283.3,1283.0,10.0]
[1610304994362,4.00959,1283.3,1282.9,10.0]
[1610304994662,1.20115233,1283.2,1282.8,4.00959]
[1610304994862,1.20115233,1283.2,1283.0,10.0]
[1610304995262,1.20115233,1283.2,1282.9,10.0]
[1610304995464,4.00959,1283.1,1282.8,4.00959]
[1610304995865,4.00959,1283.1,1282.9,10.0]
[1610304996064,1.20122179,1283.0,1282.9,10.0]
[1610304996264,1.20122179,1283.0,1282.8,4.00959]
[1610304996564,1.20122179,1283.0,1282.9,10.0]
[1610304997465,1.20107569,1283.4,1282.9,10.0]
[1610304997864,1.20107569,1283.4,1283.0,10.0]
[1610304998265,1.20107569,1283.4,1282.9,10.0]
[1610304998666,1.20107569,1283.4,1283.0,10.0]
[1610304999066,1.20107569,1283.4,1282.9,10.0]
[1610304999268,1.20092788,1283.7,1283.1,10.0]
[1610304999467,1.20092788,1283.7,1283.3,4.00959]
[1610304999869,1.20092788,1283.7,1283.4,10.0]
[1610305000268,1.20092788,1283.7,1283.5,10.0]
[1610305000970,1.20092788,1283.7,1283.6,10.0]
[1610305001372,1.20092788,1283.7,1283.4,10.0]
[1610305001872,1.20092788,1283.7,1283.5,10.0]
[1610305002272,1.20092788,1283.7,1283.4,10.0]
[1610305002471,1.20092788,1283.7,1283.5,10.0]
[1610305003072,1.20092788,1283.7,1282.8,10.0]
[1610305003272,1.20092788,1283.7,1282.7,2.3679]
[1610305003472,1.20092788,1283.7,1282.9,10.0]
[1610305003672,20.2289265,1283.6,1282.9,10.0]
[1610305003872,20.21849505,1283.5,1282.6,6.8713]
[1610305004071,22.11279505,1283.5,1283.0,10.0]
[1610305004272,20.19904152,1283.4,1283.0,10.0]
[1610305004472,20.19904152,1283.4,1282.9,10.0]
[1610305004873,20.18320969,1283.3,1283.0,10.0]
[1610305005272,20.18320969,1283.3,1282.7,10.0]
[1610305005474,4.00959,1282.8,1282.6,6.8713]
[1610305005676,6.11729,1282.8,1282.6,6.8713]
[1610305005874,6.11729,1282.8,1282.7,10.0]
[1610305006275,2.1077,1282.8,1282.7,10.0]
[1610305007477,6.11729,1282.8,1282.7,10.0]
[1610305007678,7.31891055,1282.8,1282.7,10.0]
[1610305011278,6.11729,1282.8,1282.7,10.0]
[1610305011877,2.1077,1282.8,1282.7,10.0]
[1610305012177,1.20170948,1282.8,1282.7,10.0]
[1610305013378,1.20170948,1282.8,1282.7,12.1971]
[1610305013582,1.20170948,1282.8,1282.7,16.20669]
[1610305013783,1.20114047,1283.4,1282.7,16.20669]
[1610305014184,1.20114047,1283.4,1282.8,10.0]
[1610305014582,1.20114047,1283.4,1282.9,10.0]
[1610305015079,1.20114047,1283.4,1282.8,10.0]
[1610305015385,1.20114047,1283.4,1282.9,10.0]
[1610305015587,21.28875797,1283.4,1282.9,10.0]
[1610305015787,21.28875797,1283.4,1282.8,10.0]
[1610305016184,21.28875797,1283.4,1283.0,10.0]
[1610305016387,1.2015932,1283.3,1282.9,10.0]
[1610305016782,1.2015932,1283.3,1282.2,10.0]
[1610305016984,1.2015932,1283.3,1282.1,60.13839]
[1610305017185,1.2015932,1283.3,1283.0,10.0]
[1610305017384,4.00959,1283.1,1282.4,4.00959]
[1610305017584,5.68159,1283.1,1282.4,4.00959]
[1610305017785,5.68159,1283.1,1282.5,10.0]
[1610305018184,5.68159,1283.1,1282.4,4.00959]
[1610305018185,5.68159,1283.1,1282.6,10.0]
[1610305018384,1.672,1283.1,1282.6,10.0]
[1610305018585,1.672,1283.1,1282.5,10.0]
[1610305018786,1.672,1283.1,1282.6,10.0]
[1610305018988,1.2015932,1283.3,1282.6,10.0]
[1610305019186,1.20113786,1283.0,1282.4,5.86459]
[1610305019386,1.20113786,1283.0,1282.7,10.0]
[1610305019588,1.20113786,1283.0,1282.9,4.00959]
[1610305019987,1.20113786,1283.0,1282.9,14.00959]
[1610305020587,1.2010467,1283.4,1282.9,14.00959]
[1610305021186,1.2010467,1283.4,1283.0,10.0]
[1610305021588,4.00959,1283.1,1282.7,2.1187]
[1610305021990,4.00959,1283.1,1283.0,10.0]
[1610305022190,4.00959,1283.1,1282.8,10.0]
[1610305022390,4.00959,1283.1,1282.7,2.1187]
[1610305022790,4.00959,1283.1,1282.8,10.0]
[1610305023191,4.00959,1283.1,1282.9,10.0]
[1610305023592,1.20153998,1283.0,1282.5,10.0]
[1610305023793,3.64763998,1283.0,1282.5,10.0]
[1610305023992,23.74895761,1283.0,1282.2,10.0]
[1610305024194,23.74895761,1283.0,1282.6,10.0]
[1610305024591,23.74895761,1283.0,1282.2,10.0]
[1610305024592,20.09051161,1282.9,1282.2,10.0]
[1610305024792,20.09051161,1282.9,1282.7,10.0]
[1610305024993,20.08843013,1282.8,1282.7,10.0]
[1610305025198,20.08843013,1282.8,1282.2,10.0]
[1610305025594,4.00959,1282.3,1282.2,10.0]
[1610305025793,4.00959,1282.3,1282.1,53.9476]
[1610305025993,6.16849,1282.3,1282.2,10.0]
[1610305027696,7.37079923,1282.3,1282.2,10.0]
[1610305028904,7.37079923,1282.3,1282.2,0.2921]
[1610305029102,37.37079923,1282.3,1282.2,0.2921]
[1610305029304,37.37079923,1282.3,1282.0,10.0]
[1610305029504,4.00959,1282.1,1282.0,10.0]
[1610305029704,34.00959,1282.1,1280.6,10.0]
[1610305030104,20.0652843,1281.7,1280.3,10.0]
[1610305030505,22.4969843,1281.7,1280.1,1.7515]
[1610305030703,22.4969843,1281.7,1279.4,10.0]
[1610305030904,20.05771965,1281.6,1280.2,10.0]
[1610305031304,20.05018391,1281.5,1280.2,10.0]
[1610305031505,4.00959,1280.3,1279.2,14.00959]
[1610305031906,4.00959,1280.3,1279.3,10.0]
[1610305032108,4.00959,1280.3,1279.3,12.1154]
[1610305032305,4.00959,1280.3,1279.4,10.0]
[1610305032706,2.1382,1280.6,1279.5,10.0]
[1610305033108,2.1382,1280.6,1279.4,10.0]
[1610305033507,4.00959,1280.1,1279.8,4.00959]
[1610305034308,4.00959,1280.1,1279.9,10.0]
[1610305034711,4.00959,1280.1,1280.0,10.0]
[1610305037112,3.90959,1280.1,1280.0,10.0]
[1610305037613,4.00959,1280.3,1280.0,14.00959]
[1610305038012,4.00959,1280.3,1280.1,10.0]
[1610305038412,45.3623,1281.4,1280.2,10.0]
[1610305038612,45.3623,1281.4,1280.2,11.8767]
[1610305038818,45.3623,1281.4,1280.3,10.0]
[1610305039218,45.3623,1281.4,1280.4,10.0]
[1610305039415,45.3623,1281.4,1280.4,40.0]
[1610305039713,45.3623,1281.4,1281.3,4.00959]
[1610305039912,45.3623,1281.4,1281.3,14.00959]
[1610305041611,4.00959,1282.1,1281.3,14.00959]
[1610305042012,4.00959,1282.1,1281.4,10.0]
[1610305042415,4.00959,1282.1,1281.5,10.0]
[1610305042813,4.00959,1282.1,1281.3,10.0]
[1610305043015,1.20236154,1282.0,1281.3,10.0]
[1610305043215,1.20236154,1282.0,1281.2,1.5308]
[1610305043216,1.20236154,1282.0,1281.6,10.0]
[1610305043413,3.45256154,1282.0,1281.7,10.0]
[1610305043614,4.00959,1281.8,1281.7,10.0]
[1610305043813,4.00959,1281.8,1281.3,10.0]
[1610305044214,4.00959,1281.8,1281.7,10.0]
[1610305044415,5.21210421,1281.8,1281.7,10.0]
[1610305044615,5.21210421,1281.8,1281.4,10.0]
[1610305044815,5.21210421,1281.8,1280.9,1.6363]
[1610305045015,5.21210421,1281.8,1281.5,10.0]
[1610305045218,13.74980421,1281.8,1281.5,10.0]
[1610305045416,13.74980421,1281.8,1281.0,10.0]
[1610305045616,4.00959,1281.1,1280.8,52.3216]
[1610305046015,4.00959,1281.1,1280.9,10.0]
[1610305047218,1.20304991,1281.0,1280.9,10.0]